Cogmind - Beta 14 @@@ ROGUE MODE // 2024.09.17 @ 11:57:28 Player: Mallow Result: Destroyed by Y-45 Defender with Heavy Assault Rifle Performance ------------- Evolutions (2) 1000 Regions Visited (5) 1000 Robots Destroyed (32) 160 Value Destroyed (813) 813 Prototype IDs (1) 20 Alien Tech Used (0) 0 Bonus (0) 0 TOTAL SCORE: 2993 Bonus ------- None Cogmind --------- Core Integrity 0/550 Matter 18/300 Energy 99/100 System Corruption 2% Temperature Cool (0) Movement Core (50) Location -8/Storage Parts ------- > --- POWER (1) -------- (None) > --- PROPULSION (4) --- (None) > --- UTILITY (4) ------ Advanced Visual Processing Unit > --- WEAPON (2) ------- (None) > --- INVENTORY (5) ---- Improved Ion Engine Armored Wheel Medium Storage Unit Drone Bay (2/2) Autogun Peak State ------------ > --- POWER ------------ Improved Ion Engine > --- PROPULSION ------- Aluminum Leg Improved Aluminum Leg Improved Aluminum Leg Improved Aluminum Leg > --- UTILITY ---------- Medium Storage Unit Experimental Sensor Array > --- WEAPON ----------- Autogun Mini Grenade Launcher > --- INVENTORY -------- Light Ion Engine Medium Storage Unit Structural Scanner Backup Plating I Autogun Grenade Launcher Grenade Launcher Mace [Rating: 24] Favorites ----------- Power Ion Engine Engine Ion Engine Power Core Light Nuclear Core Propulsion Light Treads Treads Light Treads Leg Improved Aluminum Leg Wheel Compact Wheel Utility Small Storage Unit Device Experimental Sensor Array Storage Small Storage Unit Processor Advanced Visual Processing Unit Protection Backup Plating I Weapon Grenade Launcher Energy Gun Medium Laser Ballistic Gun Autogun Ballistic Cannon Assault Cannon Launcher Grenade Launcher Impact Weapon Mace Build | -11 -10 -10 -9 -8 -8 ------- Run | Yrd Mat Min Mat Mat Sto Slots Evolved 4 | . . . 2 2 . Power . | . . . . . . Propulsion 2 | . . . 2 . . Utility 2 | . . . . 2 . Weapon . | . . . . . . Parts Attached 38 | 6 3 2 8 11 8 Power 7 | 1 1 1 1 2 1 Engine 6 | 1 1 1 1 2 . Core 1 | . . . . . 1 Reactor . | . . . . . . Propulsion 11 | 2 . . 4 4 1 Treads 4 | 2 . . . 1 1 Leg 4 | . . . 4 . . Wheel 3 | . . . . 3 . Hover . | . . . . . . Flight . | . . . . . . Utility 8 | 1 . 1 1 3 2 Device 4 | . . 1 . 1 2 Storage 2 | 1 . . 1 . . Processor 1 | . . . . 1 . Hackware . | . . . . . . Protection 1 | . . . . 1 . Artifact . | . . . . . . Weapon 12 | 2 2 . 2 2 4 Energy Gun 1 | 1 . . . . . Energy Cannon . | . . . . . . Ballistic Gun 2 | 1 1 . . . . Ballistic Cannon 1 | . . . . 1 . Launcher 7 | . 1 . 2 1 3 Special Weapon . | . . . . . . Impact Weapon 1 | . . . . . 1 Slashing Weapon . | . . . . . . Piercing Weapon . | . . . . . . Special Melee Weapon . | . . . . . . Unidentified Prototypes 1 | . . 1 . . . Parts Lost 21 | . . 2 . 13 6 Power 4 | . . 1 . 2 1 Propulsion 8 | . . . . 6 2 Utility 3 | . . . . 2 1 Weapon 6 | . . 1 . 3 2 Highest Loss Streak 7 | . . 1 . 7 5 To Critical Strikes 1 | . . . . 1 . Average Slot Usage (%) 88 | . 99 99 93 75 55 Engine 10 | . 14 13 11 7 . Treads 17 | . 28 28 3 1 . Leg 7 | . . . 36 25 . Wheel 2 | . . . . 2 16 Device 7 | . . 12 11 7 11 Storage 12 | . 14 14 11 9 8 Processor 1 | . . . . 2 9 Protection 5 | . 13 1 . 2 . Ballistic Gun 10 | . 14 14 11 5 . Launcher 11 | . 13 13 8 7 8 Peak Build Rating 24 | 6 9 17 24 23 17 Average Rating 12 | 4 7 15 20 18 11 On Entrance 10 | . 6 9 16 23 8 Naked Turns . | . . . . . . Heaviest Build 29 | 12 17 17 22 29 24 Greatest Support 49 | 40 40 40 49 49 32 Greatest Overweight (x) 2 | . . . . 2 . Average Overweight (x) . | . . . . . . Largest Inventory Capacity 10 | 8 8 8 10 10 10 Average Capacity 8 | 6 8 8 8 10 9 Most Carried 10 | 1 8 8 8 7 10 Average Carried 6 | . 3 7 6 6 9 Final Capacity 10 | 8 8 8 10 10 5 Final Carried 8 | 1 8 8 7 6 5 Class Distribution -------------------- 100% | Mutant Dominant Class ---------------- Mutant | -10/Materials Mutant | -10/Mines Mutant | -9/Materials Mutant | -8/Materials Mutant | -8/Storage Resources | -11 -10 -10 -9 -8 -8 ----------- Run | Yrd Mat Min Mat Mat Sto Matter Collected 807 | 209 209 192 . 93 104 Remotely . | . . . . . . Salvage Created 567 | . 317 110 24 105 11 Parts 62 | . 37 4 7 12 2 Haulers Intercepted . | . . . . . . Recyclers Shooed . | . . . . . . Parts Field Recycled . | . . . . . . Retrieved Matter . | . . . . . . Parts Self-Destructed . | . . . . . . Prevented . | . . . . . . Kills | -11 -10 -10 -9 -8 -8 ------- Run | Yrd Mat Min Mat Mat Sto Combat Hostiles Destroyed 23 | . 10 4 3 5 1 Melee 1 | . . . . 1 . Guns 4 | . 2 2 . . . Cannons 1 | . . . . 1 . AOE 17 | . 8 2 3 3 1 Classes Destroyed 8 | . 5 . 1 2 . Worker 2 | . 2 . . . . Builder 2 | . 2 . . . . Recycler 1 | . . . . 1 . Operator 2 | . 1 . . . 1 Watcher 2 | . 2 . . . . Swarmer 7 | . . . 3 3 1 Grunt 14 | . 10 4 . . . Sentry 2 | . . . . 2 . Best Kill Streak 3 | . 3 2 3 3 1 Combat Bots Only 3 | . 3 2 3 2 1 Max Kills in Single Turn 3 | . 3 1 2 2 1 Gunslinging . | . . . . . . Exploded 2 | . 2 1 2 1 1 Melee 1 | . . . . 1 . Uniques/NPCs Destroyed . | . . . . . . Combat | -11 -10 -10 -9 -8 -8 -------- Run | Yrd Mat Min Mat Mat Sto Hostile Shots Fired 300 | . 28 20 3 190 59 Missed 84 | . 8 5 2 56 13 Damage Taken 2747 | . 314 274 48 1555 556 Core 681 | . 29 96 . 322 234 Absorbed by Shields . | . . . . . . Core Remaining (%) 83 | 100 . 50 100 . . Volleys Fired 62 | . 28 15 5 9 5 Largest 2 | . 2 2 2 2 1 Hottest 74 | . 53 53 53 74 36 Shots Fired 95 | . 45 23 8 14 5 Gun 48 | . 24 15 5 4 . Cannon 2 | . . . . 2 . Launcher 45 | . 21 8 3 8 5 Special . | . . . . . . Kinetic 50 | . 24 15 5 6 . Thermal . | . . . . . . Explosive 45 | . 21 8 3 8 5 Electromagnetic . | . . . . . . Robot Hit Streak 15 | . 15 7 1 6 8 Robot Miss Streak 3 | . 3 2 2 3 1 Penetration Max . | . . . . . . Secondary Targets . | . . . . . . Shots Hit Robots 59 | . 27 16 2 9 5 Core Hits 56 | . 27 11 2 10 6 Critical Kills . | . . . . . . Critical Parts Destroyed 1 | . . . . . 1 Critical Strikes 1 | . . . . . 1 Smash 1 | . . . . . 1 Melee Attacks 1 | . . . . . 1 Impact 1 | . . . . . 1 Slashing . | . . . . . . Piercing . | . . . . . . Sneak Attacks 1 | . . . . . 1 Combat Hostiles . | . . . . . . Follow-up Attacks . | . . . . . . Damage Inflicted 2314 | . 1116 410 91 296 401 Guns 353 | . 168 167 . 18 . Cannons 45 | . . . . 45 . Explosions 1787 | . 939 242 91 208 307 Melee 94 | . . . . . 94 Ramming 35 | . 9 1 . 25 . Kinetic 398 | . 168 167 . 63 . Thermal . | . . . . . . Explosive 1787 | . 939 242 91 208 307 Electromagnetic . | . . . . . . Impact 94 | . . . . . 94 Slashing . | . . . . . . Piercing . | . . . . . . Highest Corruption 2 | . . . . 2 2 Average Corruption 2 | . . . . 2 2 Corruption Purged . | . . . . . . Corruption Blocked . | . . . . . . Effects 7 | . . . . . 7 Message Errors 2 | . . . . . 2 Matter Fused 3 | . . . . . 3 Data Loss (minor) 2 | . . . . . 2 Overload Shots . | . . . . . . Overflow Damage 187 | . 43 12 15 18 99 Projectiles . | . . . . . . Explosions 93 | . 43 12 15 18 5 Melee 94 | . . . . . 94 Knockbacks 1 | . . . . 1 . Impact . | . . . . . . Kinetic 1 | . . . . 1 . Secondary . | . . . . . . Self-Inflicted Damage 323 | . 90 51 40 131 11 Shots 14 | . 5 3 2 3 1 Rammed 7 | . 1 1 . 4 1 Targets Rammed 11 | . 1 1 . 8 1 Kicked 4 | . . . . 4 . Crushed . | . . . . . . Highest Temperature 64 | . 14 64 6 13 5 Average Temperature 12 | . 4 22 3 4 4 Received Heat Transfer 669 | . 126 138 . 252 153 Siege Activations . | . . . . . . Robots Corrupted . | . . . . . . Combat Hostiles . | . . . . . . Parts Fried 1 | . . . . . 1 Impact Corruptions 2 | . . . . . 2 Robots Melted . | . . . . . . Combat Hostiles . | . . . . . . Parts Melted . | . . . . . . Heat Transferred . | . . . . . . Parts Sabotaged . | . . . . . . Parts Stolen . | . . . . . . Parts Stripped . | . . . . . . Power Chain Reactions . | . . . . . . Alert | -11 -10 -10 -9 -8 -8 ------- Run | Yrd Mat Min Mat Mat Sto Peak Influence 249 | . 212 145 155 249 51 Initial 65 | . . 62 56 65 . Average 72 | . 108 38 125 117 5 Maximum Alert Level 1 | . 1 . . 1 . Low Security (%) 94 | 100 87 100 100 90 100 Level 1 5 | . 12 . . 9 . Level 2 . | . . . . . . Level 3 . | . . . . . . Level 4 . | . . . . . . Level 5 . | . . . . . . High Security . | . . . . . . Max Security . | . . . . . . Squads Dispatched 4 | . 2 . 1 . 1 Investigation . | . . . . . . Extermination . | . . . . . . Reinforcement 4 | . 2 . 1 . 1 Assault . | . . . . . . Garrison . | . . . . . . Intercept . | . . . . . . Searches Triggered . | . . . . . . Construction Impeded . | . . . . . . Haulers Reinforced . | . . . . . . Active Scanning Responses . | . . . . . . Cargo Convoy Interrupts . | . . . . . . Stealth | -11 -10 -10 -9 -8 -8 --------- Run | Yrd Mat Min Mat Mat Sto Distress Signals 5 | . 2 . . . 3 Communications Jammed . | . . . . . . Distress Signals . | . . . . . . Times Spotted 53 | . 22 4 4 12 11 Peak Tracking Total 7 | . 4 2 4 5 7 Tactical Retreats 3 | . . . . 2 1 Traps | -11 -10 -10 -9 -8 -8 ------- Run | Yrd Mat Min Mat Mat Sto Traps Triggered 1 | . . . . 1 . Indirectly . | . . . . . . Trap Hack Attempts . | . . . . . . Triggered . | . . . . . . Disarmed 6 | . 6 . . . . Reprogrammed . | . . . . . . Reused . | . . . . . . Traps Extracted . | . . . . . . Installed . | . . . . . . Triggered . | . . . . . . Machines | -11 -10 -10 -9 -8 -8 ---------- Run | Yrd Mat Min Mat Mat Sto Machines Disabled 3 | . 2 1 . . . Max in Single Turn 1 | . 1 1 . . . Garrison Access 1 | . . . . 1 . Machines Repaired . | . . . . . . Machines Dismantled . | . . . . . . Machines Sabotaged . | . . . . . . Overloaded Fab Kills . | . . . . . . Hacking | -11 -10 -10 -9 -8 -8 --------- Run | Yrd Mat Min Mat Mat Sto Machines Accessed 10 | . 5 . 3 1 1 Terminals 8 | . 4 . 3 . 1 Fabricators . | . . . . . . Repair Stations 1 | . 1 . . . . Recycling Units . | . . . . . . Scanalyzers . | . . . . . . Garrison Access 1 | . . . . 1 . Total Hacks 36 | . 17 . 16 2 1 Successful 18 | . 9 . 7 1 1 Failed 17 | . 8 . 8 1 . Catastrophic 3 | . 1 . 1 1 . Database Lockouts 1 | . . . 1 . . Manual . | . . . . . . Terminals 33 | . 16 . 16 . 1 Fabricators . | . . . . . . Repair Stations 1 | . 1 . . . . Recycling Units . | . . . . . . Scanalyzers . | . . . . . . Garrison Access 2 | . . . . 2 . Terminal Hacks 16 | . 8 . 7 . 1 Record 7 | . . . 7 . . Open Door 1 | . . . . . 1 Alert Level 1 | . 1 . . . . Locate Traps 2 | . 2 . . . . Disarm Traps 1 | . 1 . . . . Transport Status 1 | . 1 . . . . Reinforcement Status 1 | . 1 . . . . Registered Components 1 | . 1 . . . . Zone Layout 1 | . 1 . . . . Fabricator Hacks . | . . . . . . Repair Station Hacks 1 | . 1 . . . . Refit 1 | . 1 . . . . Recycling Unit Hacks . | . . . . . . Scanalyzer . | . . . . . . Garrison Access Hacks 1 | . . . . 1 . Seal Access 1 | . . . . 1 . Unauthorized Hacks . | . . . . . . Terminals . | . . . . . . Fabricators . | . . . . . . Repair Stations . | . . . . . . Recycling Units . | . . . . . . Scanalyzers . | . . . . . . Garrison Access . | . . . . . . Data Cores Recovered . | . . . . . . Used . | . . . . . . Hacking Detections 7 | . 4 . 3 . . Full Trace Events . | . . . . . . Feedback Events . | . . . . . . Feedback Blocked . | . . . . . . Robot Schematics Acquired . | . . . . . . Robots Built . | . . . . . . Authchips . | . . . . . . Time . | . . . . . . Total Robot Build Rating . | . . . . . . Part Schematics Acquired . | . . . . . . Parts Built . | . . . . . . Authchips . | . . . . . . Time . | . . . . . . Total Part Build Rating . | . . . . . . Parts Repaired . | . . . . . . Time . | . . . . . . Parts Recycled . | . . . . . . Recycled Matter . | . . . . . . Retrieved Matter . | . . . . . . Retrieved Components . | . . . . . . Parts Scanalyzed . | . . . . . . Part Schematics Acquired . | . . . . . . Parts Damaged . | . . . . . . Bothacking | -11 -10 -10 -9 -8 -8 ------------ Run | Yrd Mat Min Mat Mat Sto Used RIF Installer . | . . . . . . Robots Hacked . | . . . . . . Non-combat . | . . . . . . Combat . | . . . . . . Robot Hacks Applied . | . . . . . . Relay Couplers Released . | . . . . . . Fabnet Peak Effective % . | . . . . . . Robots Rewired . | . . . . . . Allies Hacked . | . . . . . . Hacks Repelled . | . . . . . . Allies | -11 -10 -10 -9 -8 -8 -------- Run | Yrd Mat Min Mat Mat Sto Total Allies . | . . . . . . Largest Group . | . . . . . . Highest-Rated Group . | . . . . . . Highest-Rated Ally . | . . . . . . Total Orders 3 | . . . . . 3 ROAM 1 | . . . . . 1 EXPLORE 2 | . . . . . 2 Ally Attacks . | . . . . . . Total Damage . | . . . . . . Kills . | . . . . . . Allies Corrupted . | . . . . . . Allies Melted . | . . . . . . Intel | -11 -10 -10 -9 -8 -8 ------- Run | Yrd Mat Min Mat Mat Sto Robot Analysis Total . | . . . . . . Derelict Logs Recovered 2 | . . 2 . . . Drone Launches 2 | . . . . . 2 Drone Recoveries . | . . . . . . Exploration | -11 -10 -10 -9 -8 -8 ------------- Run | Yrd Mat Min Mat Mat Sto Turns Passed 3547 | 116 1122 979 302 494 534 Spaces Moved 2137 | 71 646 476 221 353 370 Core 67 | 6 . . . . 61 Treads 1216 | 65 646 476 26 . 3 Legs 469 | . . . 195 274 . Wheels 385 | . . . . 79 306 Hover . | . . . . . . Flight . | . . . . . . Fastest Speed 50 | 50 160 160 120 95 50 Average Speed 137 | 150 160 160 124 120 92 Slowest Speed 190 | 160 160 160 160 190 145 Overloaded Moves . | . . . . . . Propulsion Burnouts . | . . . . . . Robots Hopped . | . . . . . . Cave-ins Triggered . | . . . . . . Exploration Rate (%) 44 | 5 81 88 25 22 45 Regions Visited 5 Branch Regions 2 Pre-discovered Areas . | . . . . . . Known Exits Taken 1 | . . . 1 . . Unknown Exits Taken 4 | 1 1 1 . 1 . Scrap Searched 2 | . . 2 . . . Spaces Dug 17 | . 8 . 9 . . Terrain Destroyed 249 | . 86 73 23 34 33 Melee . | . . . . . . Projectile . | . . . . . . AOE 249 | . 86 73 23 34 33 Terrain Rammed . | . . . . . . Walls Destroyed . | . . . . . . Machines Disabled . | . . . . . . Actions | -11 -10 -10 -9 -8 -8 --------- Run | Yrd Mat Min Mat Mat Sto Total 2636 | 77 689 673 240 399 558 Wait 348 | . . 176 . 14 158 Move 2132 | 70 645 475 220 352 370 Hop . | . . . . . . Pick Up 25 | 1 9 2 3 3 7 Fast Attach 18 | 6 . 1 1 6 4 Attach 12 | . . 1 4 3 4 Detach 2 | . . . . . 2 Swap 8 | . 3 . 3 2 . Drop 17 | . 3 2 4 2 6 Fire 62 | . 28 15 5 9 5 Melee 1 | . . . . . 1 Ram 5 | . . . . 4 1 Kick 4 | . . . . 4 . Crush 2 | . 1 1 . . . Escape Stasis . | . . . . . . Rewire . | . . . . . . Trap . | . . . . . . Miscellaneous . | . . . . . . Route ------- -11/Scrapyard -10/Materials (discovered 4 exits: *Mat x3 / [*Min]) -10/Mines (discovered 2 exits: *Mat x2) -9/Materials (discovered 2 exits: *Mat x2) -8/Materials -8/Storage (discovered 1 exit: [*Fac]) History --------- Turn | Location | Event 3 | -11/Scrapyard | Discovered new exit (range 15) 117 | -11/Scrapyard | Entered Materials 314 | -10/Materials | Build established: Mutant 426 | -10/Materials | Discovered new exit (range 14) 694 | -10/Materials | Discovered new exit (range 14) 870 | -10/Materials | Discovered new exit (range 15) 960 | -10/Materials | Discovered new exit (range 11) 1239 | -10/Materials | Entered Mines 1358 | -10/Mines | Found a damaged Exp. Sensor Array with a note attached 1362 | -10/Mines | Found Prototype Device 1362 | -10/Mines | Identified Exp. Sensor Array 1480 | -10/Mines | Discovered new exit (range 9) 2056 | -10/Mines | Learned Materials trap positions 2065 | -10/Mines | Learned location of 1 exit from Materials 2182 | -10/Mines | Discovered new exit (range 8) 2218 | -10/Mines | Entered Materials 2218 | -9/Materials | Evolved 2 slots: Propulsion x2 2219 | -9/Materials | Identified exit to Materials 2220 | -9/Materials | Loaded intel: 14 trap records 2445 | -9/Materials | Central database locked down 2467 | -9/Materials | Discovered exit to Materials (range 16) 2520 | -9/Materials | Entered another Materials area 2520 | -8/Materials | Evolved 2 slots: Utility x2 3001 | -8/Materials | Core integrity fell below 50% 3001 | -8/Materials | Discovered new exit (range 13) 3014 | -8/Materials | Entered Storage 3034 | -8/Storage | Lost 7 parts (1p3n1u2w) 3519 | -8/Storage | Core integrity fell below 20% 3545 | -8/Storage | Lost 5 parts (1p2n2w) 3548 | -8/Storage | Discovered new exit (range 20) 3548 | -8/Storage | Destroyed by Y-45 Defender with Heavy Assault Rifle Last Messages --------------- The unstable cave ceiling collapses. Acquired 19 matter. Com. Wheel destroyed. K-01 Serf collects debris. Destroyed Lgt. Ion Engine. The unstable cave ceiling collapses. K-01 Serf collects debris. S-10 Pest destroyed. Grenade Launcher destroyed. Dropped Adv. Treads. Critical hit (Burn: +37). Dropped Med. Storage Unit. K-01 Serf collects debris. Critical hit (Burn: +37). U-05 Engineer lays Concrete. Slammed into K-01 Serf. K-01 Serf sends out distress signal. K-01 Serf collects debris. Structural Scanner destroyed. EXIT=FOUND Map ----- +----------------------------------------------------+ | | | | | | | | | | | | | | | | | | | | | | | | | | | ?????????????????????????????#############???????? | | ?????????????????????????????## # ???????? | | ?????????????????????????????#T """ """ # ???????? | | ?????????????????????????????## "Y" """ # ???????? | | ?????????????????????????????## """ # ???????? | | ?????????????????????????????## # ???????? | | ?????????????????????????????##!! # ???????? | | ????????????? ###????????????##!! # ???????? | | ????????????? ####?############ # # | | ????????##+#### ###############+#########+#+## | | ?????? | | ??????< Y ^ | | ?????? @ | | ?????????????## ############################# | | ????????????? ##???############################## | | ???????????????????????????????????????????????## | | ???????????????????????????????????????????????## | | ????????????????????????????????????????######### | | ????????????????????????????????????????######### | | ????????????????????????????????????????## # | | ????????????????????????????????????????## / # | | ????????????????????????????????????????## ] + | | ????????????????????????????????????????## # | | ????????????????????????????????????????## ![# | | ???????????????????????????????????????### + | | ???????????????????????????????????????########## | | ???????????????????????????????????????## / [/ # | | ?????????????????????????????????########! = + | | ???????????????????????????????? ######## # | | ???????????????????????????????? ## # ## ####### | | ???????????????????????????????? # *[ ## | | ???????????????????????????## ?? # # | | ???????????????????????????## # /! " T | | ???????????????????????????## / " " *=! # | | ???????????????????????????## # "Y" ![== ### | | ???????????????????????????## ?? # """ = + | | ???????????????????????????????? ### # | +----------------------------------------------------+ Best States ------------- Heat Dissipation 31 Energy Generation 14 Energy Capacity 275 Matter Stores 249 Matter Capacity 300 Sight Range 20 Robot Scan Range 20 Terrain Scan Density 10 Armor Coverage 80 Evasion (%) 55 Recoil Reduction 2 Item Schematics ----------------- None Robot Schematics ------------------ None Fabricated ------------ Nothing Alien Tech Used ----------------- None Achievements -------------- None Challenges ------------ None Game ------ Seed InsulatedTargetingInsulator Manual? 0 Play Time 00:28:38 Cumulative 22.0 hours Start 2024.09.17 @ 11:29:58 End 2024.09.17 @ 11:57:28 Sessions 1 Manual Loads 0 Difficulty Rogue Special Mode None Game No. 43 Rogue 43 Adventurer 0 Explorer 0 Win Type - Total 0 Types 0/0/0/0/0/0/0/0/0 Lore% 11 Gallery% 27 Achievement% 19 Wizard Run 0 Options --------- Layout 1 ASCII 0 Keyboard 0 Movement Arrows Keybinds 0 Fullscreen 2 Font 24/Smallcaps Map View 50x35 Zoom Use 46% Tactical HUD 0 Map Filters NONE Filters NONE Steam 1 RUN: ad8ff03c-9936-4794-9331-360b0983368a